bitfinex/quotes_ETHUSD_20241204
["timestamp","ask_amount","ask_price","bid_price","bid_amount"]
[1733304078282,0.65135906,3722.8,3722.3,2.68646]
[1733304078482,0.25047911,3722.7,3722.3,2.68646]
[1733304078728,0.25047911,3722.6,3722.3,2.68646]
[1733304078897,0.25055034,3722.5,3722.4,2.68643]
[1733304079405,0.25055034,3722.5,3722.1,0.7946]
[1733304079608,0.16799523,3723.2,3722.1,0.7946]
[1733304079816,0.81959262,3723.1,3722.1,2.68658]
[1733304080001,0.65159739,3723.0,3722.1,2.68658]
[1733304080187,0.65159739,3722.9,3722.1,2.68658]
[1733304080383,0.32710068,3723.2,3722.1,2.68658]
[1733304080589,0.81978016,3723.1,3722.1,2.68661]
[1733304080905,1.07681116,3723.0,3722.1,2.68661]
[1733304081226,0.65176431,3722.9,3722.1,2.68661]
[1733304081422,0.65176431,3722.8,3722.1,2.68661]
[1733304081579,0.65176431,3722.7,3721.7,0.8329]
[1733304081785,0.65176431,3722.7,3721.3,3.0]
[1733304081786,0.65176431,3722.6,3721.3,3.7666]
[1733304082086,0.65176431,3722.5,3721.3,0.7666]
[1733304082286,0.81978016,3722.4,3721.3,0.7666]
[1733304082586,0.81978016,3722.3,3721.5,2.68708]
[1733304082821,0.65176431,3722.2,3721.5,0.345368]
[1733304083144,0.65176431,3722.2,3721.3,0.7666]
[1733304083145,0.58581348,3723.1,3722.3,2.6865]
[1733304083417,0.58581348,3723.1,3722.1,0.7666]
[1733304083418,0.6520439,3723.0,3722.5,2.68636]
[1733304083618,0.6520439,3722.9,3722.5,2.68636]
[1733304083821,0.25078611,3722.8,3722.5,2.68636]
[1733304084024,0.25078611,3722.7,3722.5,2.68636]
[1733304084193,0.49511653,3723.2,3722.5,2.68636]
[1733304084194,0.25078611,3722.6,3722.5,2.68636]
[1733304086928,0.32710068,3723.2,3722.5,2.68636]
[1733304087246,0.65203586,3723.1,3722.5,2.68636]
[1733304087524,0.65203586,3723.0,3722.2,3.23658]
[1733304087829,0.6520334,3722.9,3722.6,2.68627]
[1733304088000,2.51148629,3723.6,3722.6,2.68627]
[1733304088203,0.92812198,3723.5,3722.6,2.68627]
[1733304088422,1.4325456,3723.4,3722.6,2.68627]
[1733304088731,0.65202902,3723.3,3722.6,2.68627]
[1733304088933,0.78051658,3723.4,3722.6,2.68627]
[1733304088934,0.65202902,3723.2,3722.7,0.55]
[1733304089086,0.65202902,3723.1,3722.7,0.55]
[1733304089395,0.65202902,3723.0,3722.7,0.55]
[1733304089600,0.65202902,3722.9,3722.7,0.55]
[1733304089809,0.25078039,3722.8,3722.7,0.55]
[1733304090658,0.25078039,3722.8,3722.4,0.55]
[1733304090781,0.25078039,3722.8,3722.1,0.7666]
[1733304090782,0.25078039,3722.7,3722.2,0.55]
[1733304090985,0.25078039,3722.6,3722.1,0.55]
[1733304091198,0.25078039,3722.5,3722.1,0.55]
[1733304091400,0.25078039,3722.4,3722.1,0.55]
[1733304091626,0.25078039,3722.3,3722.1,0.55]
[1733304091833,0.40132423,3722.7,3722.1,0.55]
[1733304092036,0.6521596,3722.6,3722.2,0.55]
[1733304092184,0.25083537,3722.5,3722.2,0.55]
[1733304092389,0.25083537,3722.4,3722.2,0.55]
[1733304092587,0.25083537,3722.3,3722.1,0.55]
[1733304092788,0.25083537,3722.2,3721.9,0.55]
[1733304093041,0.25085178,3722.1,3721.9,0.55]
[1733304093250,0.16800475,3722.8,3721.9,0.55]
[1733304093251,4.11969939,3722.8,3721.9,0.55]
[1733304093392,5.09472038,3722.7,3721.9,0.55]
[1733304093735,0.65223543,3722.6,3721.9,0.55]
[1733304093895,0.65223543,3722.5,3721.9,0.55]
[1733304094095,0.65223543,3722.4,3721.9,0.55]
[1733304094290,0.65223543,3722.3,3721.9,0.55]
[1733304094608,0.25086114,3722.2,3721.9,0.55]
[1733304094798,0.25086114,3722.1,3721.9,0.55]
[1733304095032,0.401375,3722.5,3721.9,0.55]
[1733304095189,1.02699968,3722.4,3721.8,0.55]
[1733304095390,0.65233503,3722.3,3721.8,0.55]
[1733304095589,0.37466465,3722.4,3721.7,0.55]
[1733304095590,0.65233503,3722.2,3721.7,0.55]
[1733304095829,0.25096003,3722.1,3721.8,0.55]
[1733304096133,0.25096003,3722.0,3721.8,0.55]
[1733304096427,0.25096003,3721.9,3721.8,0.55]
[1733304096785,0.25096003,3721.9,3721.5,0.55]
[1733304097023,0.40177588,3722.1,3721.5,0.55]
[1733304097223,0.25111056,3722.0,3721.5,0.55]
[1733304097426,0.25111056,3721.9,3721.6,2.68695]
[1733304097591,0.25111056,3721.8,3721.7,2.68693]
[1733304097790,0.25111056,3721.8,3721.7,3.23693]
[1733304100136,0.2513777,3721.8,3721.7,3.23694]
[1733304100702,0.2513777,3721.8,3721.7,3.911724]
[1733304100904,0.40217594,3722.4,3721.9,2.68673]
[1733304101230,0.65353888,3722.3,3722.0,0.55]
[1733304101417,0.65353888,3722.2,3722.0,0.55]
[1733304101624,0.65353888,3722.1,3722.0,0.55]
[1733304102017,0.25136294,3722.1,3722.0,0.55]
[1733304102244,0.6536252,3722.1,3722.0,0.55]
[1733304102545,0.25136294,3722.1,3722.0,3.23672]
[1733304102748,0.65361926,3722.1,3722.0,3.23672]
[1733304102963,0.65361926,3722.1,3721.9,0.55]
[1733304103105,1.11969939,3722.6,3722.0,0.55]
[1733304103312,3.65634828,3722.5,3722.0,0.55]
[1733304103512,0.82179235,3722.4,3722.0,0.55]
[1733304103711,0.65634828,3722.5,3722.0,0.55]
[1733304104107,3.65634828,3722.5,3721.8,0.55]
[1733304104318,0.65634828,3722.5,3721.8,0.55]
[1733304104646,1.33396748,3722.4,3721.8,0.55]
[1733304104947,0.82183557,3722.3,3721.8,0.55]
[1733304105147,0.82183557,3722.2,3721.8,0.55]
[1733304105320,0.65379184,3722.1,3721.8,0.55]
[1733304105526,0.65379184,3722.0,3721.8,0.55]
[1733304105736,0.65379184,3721.9,3721.8,0.55]
[1733304106840,0.65379184,3721.9,3721.5,0.55]
[1733304107150,0.2514584,3721.8,3721.7,3.23687]
[1733304112461,0.2514584,3721.8,3721.0,0.7881]
[1733304112646,0.65391303,3721.7,3721.4,2.68715]
[1733304112847,0.65391303,3721.6,3721.4,2.68715]
[1733304113015,0.65391303,3721.5,3721.4,2.68715]
[1733304113218,0.65391303,3721.5,3721.0,0.7881]
[1733304113435,0.2514584,3721.4,3721.0,3.47551]
[1733304113654,1.56448165,3721.9,3721.7,2.6869]
[1733304113822,0.65386701,3721.8,3721.7,2.6869]
[1733304115528,0.65386701,3721.8,3721.7,3.2369]
[1733304115731,0.25148731,3721.8,3721.7,4.0094]
[1733304115931,0.40234474,3722.4,3721.7,4.0094]
[1733304116135,1.11969939,3723.1,3722.4,0.55]
[1733304116357,3.14834838,3723.0,3722.4,1.3605]
[1733304116559,1.75242606,3722.9,3722.5,2.68636]
[1733304116862,0.65374963,3722.8,3722.6,2.68623]
[1733304117059,0.65374963,3722.7,3722.4,1.3605]
[1733304117232,0.16800606,3722.9,3722.6,0.55]
[1733304117430,1.39599703,3723.0,3722.8,2.68615]
[1733304117629,0.82173808,3722.9,3722.8,2.68615]
[1733304117951,0.82174675,3722.9,3722.6,3.23629]
[1733304118153,0.6537415,3722.8,3722.6,3.23629]
[1733304118319,0.6537415,3722.7,3722.6,3.23629]
[1733304118523,0.6537415,3722.7,3722.6,0.55]
[1733304118750,0.6537415,3722.7,3722.6,3.23629]
[1733304119629,0.82174532,3722.7,3722.6,3.23629]
[1733304120850,0.82174532,3722.7,3722.6,0.55]
[1733304121439,0.82174532,3722.7,3722.6,3.23629]
[1733304121651,0.6537415,3722.7,3722.6,4.03259]
[1733304122477,0.6537415,3722.7,3722.6,3.23629]
[1733304123466,0.40230246,3722.7,3722.6,3.23629]
[1733304123775,0.65349235,3722.7,3722.6,3.23629]
[1733304125159,0.65349235,3722.7,3722.4,0.55]
[1733304125435,0.82150952,3722.6,3721.8,3.7722]
[1733304125641,1.75253886,3722.5,3721.9,3.0]
[1733304125831,1.7525551,3722.4,3721.9,3.0]
[1733304126034,0.82150952,3722.3,3721.5,0.54568667]
[1733304126375,3.1493507,3722.2,3721.4,2.68711]
[1733304126582,1.11969939,3722.0,3721.2,2.68729]
[1733304126734,4.26914586,3721.9,3721.2,2.68729]
[1733304126936,1.75269391,3721.8,3721.2,2.68729]
[1733304127191,1.75278109,3721.7,3721.0,2.68738]
[1733304127481,1.75268608,3721.6,3720.9,2.68752]
[1733304127629,1.53861638,3721.8,3720.8,0.54928839]
[1733304127630,0.82155811,3721.5,3721.2,2.68726]
[1733304127835,0.82157777,3721.4,3720.8,0.54928839]
[1733304128035,0.6535105,3721.3,3721.0,2.68743]
[1733304128248,0.6535105,3721.2,3721.0,2.68743]
[1733304128451,0.6535105,3721.1,3721.0,3.23743]
[1733304128669,0.25135019,3721.1,3721.0,3.23743]
[1733304128990,0.65337844,3721.1,3721.0,3.23743]
[1733304129337,0.65337844,3721.1,3720.8,2.68752]
[1733304129688,0.65326295,3721.0,3720.3,0.7864]
[1733304129903,0.65326295,3720.9,3720.3,0.7864]
[1733304130062,0.16808539,3721.3,3720.3,0.98958086]
[1733304130391,0.82095792,3721.2,3720.5,2.68781]
[1733304130690,0.41850763,3721.5,3720.3,0.98958086]
[1733304130691,0.65287191,3721.1,3720.8,2.68755]
[1733304130892,0.65287191,3721.0,3720.5,2.68779]
[1733304131193,0.65287191,3720.9,3720.5,2.68779]
[1733304131349,0.65287191,3720.8,3720.5,2.68779]
[1733304131555,0.25110458,3720.7,3720.3,2.68793]
[1733304131799,0.25110458,3720.6,3720.1,3.7864]
[1733304132099,0.25110458,3720.5,3720.3,2.68793]
[1733304132393,0.25091984,3720.4,3720.3,2.68793]
[1733304132605,0.40146107,3721.0,3720.4,2.68787]
[1733304132751,0.65237399,3720.9,3720.4,2.68787]
[1733304132950,0.65237399,3720.8,3720.4,2.68787]
[1733304133273,0.25091292,3720.7,3720.4,2.68787]
[1733304133479,0.25091292,3720.6,3720.3,3.0]
[1733304133681,1.39587341,3721.3,3720.3,3.0]
[1733304133875,2.43836945,3721.2,3720.3,3.0]
[1733304134177,0.65213154,3721.1,3720.3,2.68794]
[1733304134380,0.65213154,3721.0,3720.4,2.68787]
[1733304134581,0.65213154,3720.9,3720.4,2.68787]
[1733304134745,0.68822919,3721.2,3720.4,2.68787]
[1733304134746,0.25081969,3720.8,3720.4,2.68783]
[1733304134950,0.25081969,3720.7,3720.4,2.68783]
[1733304135150,0.25081969,3720.6,3720.4,2.68783]
[1733304135387,0.40117485,3721.1,3720.4,2.68783]
[1733304135578,0.65183305,3721.0,3720.4,2.68783]
[1733304135778,0.65183305,3720.9,3720.1,0.55]
[1733304135978,0.2506582,3720.8,3720.4,2.68781]
[1733304136152,0.2506582,3720.7,3720.4,2.68781]
[1733304136357,0.40105345,3721.1,3720.4,2.68781]
[1733304136551,0.65164491,3721.0,3720.5,2.68774]
[1733304136789,0.25059146,3720.9,3720.8,3.23757]
[1733304136953,0.40090389,3721.4,3721.0,0.55]
[1733304137289,1.28779988,3721.8,3721.0,0.55]
[1733304137290,0.4008908,3721.7,3721.4,2.68714]
[1733304137592,0.65143144,3721.6,3721.4,2.68714]
[1733304137798,0.25054064,3721.5,3721.4,3.505874]
[1733304137954,0.25054064,3721.5,3721.4,7.269574]
[1733304138152,0.40085715,3722.2,3721.8,0.55]
[1733304138388,0.25049991,3722.1,3721.8,0.55]
[1733304138600,0.40085715,3722.4,3722.2,2.68657]
[1733304138799,0.25048701,3722.3,3722.0,3.23671]
[1733304138986,0.25048701,3722.2,3722.0,3.23671]
[1733304139300,0.25048701,3722.1,3722.0,3.23671]
[1733304139600,0.25049338,3722.1,3722.0,3.23672]
[1733304140696,1.11969939,3722.8,3722.0,3.23672]
[1733304140894,0.25048736,3722.1,3721.8,3.23686]
[1733304141132,2.46795548,3722.7,3721.8,3.23686]
[1733304141133,0.2504933,3722.0,3721.8,2.68686]
[1733304141305,0.25049985,3721.9,3721.6,2.68699]
[1733304141599,2.51333976,3722.5,3721.4,0.55]
[1733304141760,1.58035064,3722.4,3721.8,2.6868]
[1733304141953,0.65130789,3722.3,3722.2,2.68658]
[1733304142268,0.25050297,3722.3,3722.2,2.68658]
[1733304143196,0.25050297,3722.3,3721.9,0.55]
[1733304143507,2.26506048,3723.0,3722.1,2.68663]
[1733304143508,0.25048003,3722.2,3722.1,2.68663]
[1733304144413,0.25048003,3722.2,3722.1,3.23663]
[1733304146720,0.25048003,3722.2,3721.8,0.7935]
[1733304147016,0.25048003,3722.1,3721.9,0.55]
[1733304147213,0.40078855,3722.6,3721.9,0.55]
[1733304147417,0.6513162,3722.5,3721.9,0.55]
[1733304147622,0.65138789,3722.4,3721.9,0.55]
[1733304147916,0.2505338,3722.3,3721.9,0.55]
[1733304148213,0.2505338,3722.2,3722.0,2.68665]
[1733304148373,0.2505338,3722.1,3722.0,2.68665]
[1733304149019,0.2505338,3722.1,3722.0,3.639665]
[1733304150002,0.40092566,3722.5,3722.0,3.639665]
[1733304150173,0.25058729,3722.4,3722.3,3.23644]
[1733304150618,0.25058729,3722.4,3722.3,4.04514]
[1733304151284,0.40095775,3723.1,3722.6,2.68629]
[1733304151603,0.82042855,3723.0,3722.6,2.68629]
[1733304151812,0.65155967,3722.9,3722.4,0.55]
[1733304151978,1.28773101,3723.3,3722.4,0.55]
[1733304151979,0.65155967,3722.8,3722.6,2.68627]
[1733304152301,0.25060192,3722.7,3722.6,2.68627]
[1733304152817,0.25060192,3722.7,3722.6,4.05953175]
[1733304152981,0.40103062,3723.4,3722.7,3.23622]
[1733304153181,0.65165059,3723.3,3723.0,2.68594]
[1733304153505,0.16803162,3723.7,3722.7,3.23622]
[1733304153506,0.65165059,3723.2,3723.1,3.23593]
[1733304153989,0.25061997,3723.2,3723.1,3.23593]
[1733304154522,0.4009203,3723.3,3723.2,2.68579]
[1733304154717,0.6514959,3723.3,3723.2,2.68579]
[1733304154878,0.2505756,3723.3,3723.2,2.68579]
[1733304158408,0.2505756,3723.3,3722.9,3.23603]
[1733304158409,0.4009203,3723.7,3723.5,2.68564]
[1733304158726,0.25031429,3723.6,3723.5,2.68564]
[1733304160001,0.25031429,3723.6,3723.5,3.23564]
[1733304160179,0.25031429,3723.9,3723.6,0.55]
[1733304160378,0.4009203,3724.5,3723.8,2.68542]
[1733304160679,0.41762531,3724.8,3723.8,2.68542]
[1733304160680,0.65112704,3724.4,3723.8,2.6854]
[1733304160883,0.65112704,3724.3,3723.6,0.55]
[1733304161085,0.25020674,3724.2,3723.8,2.68535]
[1733304161296,0.25020674,3724.1,3724.0,2.68528]
[1733304161497,0.25020674,3724.1,3723.6,0.55]
[1733304161717,0.25020674,3724.0,3723.6,0.55]
[1733304161922,2.91113208,3724.8,3723.6,0.55]
[1733304162129,2.36421652,3724.7,3723.6,0.55]
[1733304162430,2.36421652,3724.7,3723.4,2.68569]
[1733304162431,2.68493,3724.5,3723.4,2.68569]
[1733304162599,0.65108401,3724.4,3723.4,2.68569]
[1733304162921,3.33615401,3724.3,3723.2,2.68584]
[1733304163123,0.65108401,3724.2,3723.2,2.68584]
[1733304163420,0.86992488,3724.1,3723.2,2.68584]
[1733304163647,0.65108401,3724.0,3723.2,2.68584]
[1733304163933,0.65108401,3723.9,3723.1,0.55]
[1733304164093,0.65108401,3723.8,3723.3,2.68571]
[1733304164282,0.65108401,3723.7,3723.4,2.6857]
[1733304164629,0.25016371,3723.6,3723.5,2.68558]
[1733304164921,0.25016371,3723.6,3723.3,2.68578]
[1733304165105,0.25016371,3723.5,3723.4,2.68569]
[1733304165894,0.25016371,3723.5,3723.4,3.44899]
[1733304166416,0.65108401,3723.5,3723.4,3.44899]
[1733304166622,0.25016371,3723.5,3723.4,2.68569]
[1733304167019,0.65108401,3723.5,3723.4,2.68569]
[1733304167192,0.25016371,3723.5,3723.4,2.68569]
[1733304167421,0.65117602,3723.5,3723.4,2.68569]
[1733304167622,0.65117602,3723.5,3723.1,0.7633]
[1733304167825,0.25016371,3723.4,3722.8,1.3379]
[1733304168042,0.25016371,3723.3,3722.8,1.3379]
[1733304168208,0.16798254,3723.8,3723.2,2.68586]
[1733304168416,0.65196433,3723.7,3723.0,2.68594]
[1733304168641,0.65196433,3723.6,3723.0,2.68594]
[1733304168835,0.65196433,3723.5,3722.8,1.3379]
[1733304169045,0.65196433,3723.4,3723.1,2.68589]
[1733304169242,0.65196433,3723.4,3722.8,1.3379]
[1733304169243,0.25075551,3723.3,3723.2,2.68585]
[1733304169555,0.25075551,3723.3,3722.8,1.3379]
[1733304169713,0.25075551,3723.2,3723.1,2.6859]
[1733304171009,0.25075551,3723.2,3723.0,2.686]
[1733304171316,0.25075551,3723.1,3723.0,0.55]
[1733304171652,0.65212386,3723.1,3722.7,2.68619]
[1733304171824,0.65212386,3723.1,3722.6,2.68628]
[1733304171825,0.6522344,3723.1,3722.6,2.68628]
[1733304172022,0.6277344,3723.0,3722.6,2.68628]
[1733304172325,0.40137502,3722.9,3722.4,1.28835918]
[1733304172528,0.40137502,3722.8,3722.4,0.52725918]
[1733304172714,0.40137502,3722.7,3722.4,2.68641]
[1733304172912,0.40137502,3722.6,3722.5,2.68636]
[1733304173722,0.40137502,3722.6,3722.5,5.22028454]
[1733304173939,0.40137502,3722.6,3722.3,3.23524803]
[1733304174140,0.16798796,3723.1,3722.4,2.53392454]
[1733304174350,0.56957421,3723.0,3722.4,2.53392454]
[1733304174521,0.40158625,3722.9,3722.4,2.53392454]
[1733304174728,0.40158625,3722.8,3722.4,2.53392454]
[1733304174940,0.40158625,3722.7,3722.4,2.53392454]
[1733304175144,0.40158625,3722.6,3722.4,5.22030454]
[1733304175358,0.40162795,3722.6,3722.4,5.22030454]
[1733304175524,0.16800637,3723.0,3722.4,5.22030454]
[1733304175720,0.56963951,3722.9,3722.4,5.22030454]
[1733304176033,0.56963951,3722.8,3722.0,2.53392454]
[1733304176338,0.56963951,3722.7,3722.2,0.54381329]
[1733304176541,0.56963951,3722.6,3722.2,0.54381329]
[1733304176727,0.40163314,3722.5,3722.1,2.68661]
[1733304176931,0.40163314,3722.4,3722.1,2.68661]
[1733304177123,0.40163314,3722.3,3722.1,2.68661]
[1733304177462,0.40163314,3722.2,3722.1,2.68661]
[1733304178758,0.40166456,3722.2,3722.1,2.68661]
[1733304179121,0.40166456,3722.2,3722.0,5.22063454]
[1733304179317,0.41840059,3722.8,3722.0,5.22063454]
[1733304179318,0.16802549,3722.5,3722.0,5.22063454]
[1733304179559,0.40165573,3722.4,3722.1,2.68665]
[1733304179759,0.40165573,3722.3,3722.1,2.68665]
[1733304179959,0.40165573,3722.2,3722.1,2.68665]
[1733304180565,0.16802549,3722.7,3722.2,2.68657]
[1733304180726,0.5696923,3722.6,3722.2,2.68657]
[1733304180922,0.40166681,3722.5,3722.4,5.22035454]
[1733304181237,1.11969939,3723.3,3722.5,0.55]
[1733304181416,0.4183818,3723.1,3722.9,2.68601]
[1733304181620,0.40162355,3723.0,3722.9,2.68601]
[1733304183334,0.40162355,3723.0,3722.9,3.26238064]
[1733304184022,0.65263934,3723.0,3722.9,3.26238064]
[1733304184266,0.65263934,3723.0,3722.9,0.57637064]
[1733304184436,0.65263934,3723.0,3722.9,2.68607]
[1733304184637,0.65263934,3723.0,3722.8,2.53392454]
[1733304184829,0.25101579,3722.9,3722.8,5.77000454]
[1733304185378,0.6526338,3722.9,3722.8,5.77000454]
[1733304185526,0.25101579,3722.9,3722.8,5.77000454]
[1733304185975,0.00101579,3722.9,3722.8,5.77000454]
[1733304186128,0.00101579,3722.9,3722.8,6.69499599]
[1733304188689,0.00101579,3722.9,3722.8,7.51419599]
[1733304189269,0.00101579,3722.9,3722.8,4.82811599]
[1733304189571,0.40267608,3722.9,3722.8,2.53392454]
[1733304189931,0.00101579,3722.9,3722.8,2.53392454]
[1733304190143,0.40268415,3722.9,3722.8,2.53392454]
[1733304190427,0.40268415,3722.9,3722.4,2.53392454]
[1733304190632,0.40166836,3722.8,3722.5,2.68633]
[1733304190786,0.40166836,3722.7,3722.6,2.68629]
[1733304191307,1.11969939,3723.2,3722.6,2.68629]
[1733304191628,1.49986508,3723.1,3722.6,2.68629]
[1733304191937,0.56983739,3723.0,3722.6,2.68629]
[1733304192119,0.40183397,3722.9,3722.6,2.68629]
[1733304192319,0.40183397,3722.8,3722.6,2.68629]
[1733304192639,0.40183397,3722.7,3722.4,5.22029454]
[1733304192944,0.40183397,3722.6,3722.5,2.68636]
[1733304193238,0.5698398,3722.6,3722.5,2.68636]
[1733304193541,0.40183397,3722.6,3722.5,2.68636]
[1733304194211,0.56983943,3722.6,3722.4,2.53392454]
[1733304194417,0.40183397,3722.5,3722.4,2.53392454]
[1733304194620,0.5698476,3722.5,3722.4,2.53392454]
[1733304194849,0.57004459,3722.5,3722.0,2.53392454]
[1733304195048,0.40202912,3722.4,3722.0,2.53392454]
[1733304195351,0.57004459,3722.3,3721.6,2.53392454]
[1733304195517,0.98882493,3722.2,3721.6,2.53392454]
[1733304195850,1.91928258,3722.1,3721.6,2.53392454]
[1733304196150,1.91928258,3722.1,3721.2,0.8063]
[1733304196151,0.41878034,3721.9,3721.2,2.53392454]
[1733304196297,4.22544973,3721.7,3720.5,3.34022454]
[1733304196504,0.41878034,3721.5,3721.4,2.53392454]
[1733304196701,0.41875308,3721.6,3721.5,2.68708]
[1733304196933,0.57006148,3721.6,3721.5,2.68708]
[1733304197144,0.40198855,3721.6,3721.5,3.28543045]
[1733304197936,0.65316463,3721.6,3721.5,3.28543045]
[1733304198102,0.25117608,3721.6,3721.5,3.83543045]
[1733304198823,0.6530165,3721.6,3721.5,3.83543045]
[1733304199000,0.65301181,3721.6,3721.5,3.83543045]
[1733304199232,0.25117608,3721.6,3721.5,4.59463045]
[1733304200940,0.16803836,3722.2,3721.8,0.55]
[1733304201151,0.82111347,3722.1,3721.8,0.55]
[1733304201384,0.82111347,3722.0,3721.9,2.68673]
[1733304201650,0.8211089,3722.0,3721.8,5.22077454]
[1733304201938,0.41863599,3722.4,3721.8,5.22077454]
[1733304201939,0.65307214,3721.9,3721.8,5.77077454]
[1733304202142,0.65307214,3721.9,3721.8,3.08392454]
[1733304202715,0.65307214,3721.9,3721.8,2.53392454]
[1733304202940,0.82112036,3721.9,3721.8,2.53392454]
[1733304203452,0.82112036,3721.9,3721.4,2.53392454]
[1733304203607,0.82112036,3721.8,3721.4,2.53392454]
[1733304203931,0.82112036,3721.7,3721.4,5.22104454]
[1733304204093,0.65307214,3721.6,3721.4,5.22104454]
[1733304204434,0.65307214,3721.5,3721.4,5.22104454]
[1733304205413,0.65284296,3721.5,3721.4,2.53392454]
[1733304206524,0.65284296,3721.5,3721.2,0.55]
[1733304206690,0.65284296,3721.4,3721.2,0.55]
[1733304206874,0.65284296,3721.3,3721.2,0.55]
[1733304207079,0.65284296,3721.3,3721.2,3.2373]
[1733304207515,0.65284296,3721.3,3721.0,2.53392454]
[1733304207679,0.25112243,3721.2,3721.0,2.53392454]
[1733304207880,0.25112243,3721.1,3721.0,5.22136454]
[1733304208076,0.25112243,3721.1,3721.0,8.22136454]
[1733304208307,0.25112243,3721.1,3721.0,9.39270299]
[1733304210108,0.25112243,3721.1,3721.0,9.94270299]
[1733304210900,0.25112243,3721.1,3721.0,9.39270299]
[1733304212736,0.25112243,3721.1,3721.0,8.77136454]
[1733304212919,0.40123603,3721.6,3721.3,2.68717]
[1733304213119,0.65200234,3721.5,3721.4,2.53392454]
[1733304213698,0.65200234,3721.5,3721.4,2.51306709]
[1733304215114,0.65200234,3721.5,3721.2,2.6873]
[1733304215318,0.65200234,3721.4,3721.2,5.22122454]
[1733304215638,0.25076631,3721.3,3721.2,5.22122454]
[1733304216801,0.65213676,3721.3,3721.2,5.22122454]
[1733304217742,0.65213676,3721.3,3721.2,2.53392454]
[1733304221245,0.82020763,3721.3,3721.2,2.53392454]
[1733304221429,0.65213676,3721.3,3721.2,2.53392454]
[1733304221754,0.82021146,3721.3,3721.2,2.53392454]
[1733304222805,1.39370083,3722.0,3721.2,2.53392454]
[1733304223046,0.41881801,3721.6,3721.2,2.53392454]
[1733304223339,0.82142608,3721.5,3721.2,2.53392454]
[1733304223553,0.82142608,3721.4,3721.2,2.53392454]
[1733304223750,0.68795993,3721.9,3721.2,2.53392454]
[1733304223751,0.82142608,3721.3,3721.2,2.53392454]
[1733304224534,1.24024409,3721.3,3720.1,0.7836]
[1733304224749,0.41881801,3721.1,3720.3,2.53392454]
[1733304225075,0.82142608,3721.0,3720.4,2.68788]
[1733304225233,0.82142608,3720.9,3720.7,2.53392454]
[1733304225567,0.82142608,3720.8,3720.7,5.22155454]
[1733304225867,0.65335609,3720.8,3720.7,5.22155454]
[1733304226072,0.82144204,3720.8,3720.7,5.22155454]
[1733304226271,0.65335609,3720.8,3720.7,5.22155454]
[1733304232074,0.65335609,3720.8,3720.7,6.81519399]
[1733304232338,0.2512908,3720.8,3720.7,10.36519399]
[1733304235176,0.2512908,3720.8,3720.7,9.57425454]
[1733304235378,0.2512908,3720.8,3720.7,5.22155454]
[1733304235542,0.65419472,3720.8,3720.7,5.22155454]
[1733304237779,0.82227865,3720.8,3720.7,5.22155454]
[1733304239858,0.82264832,3720.8,3720.7,2.53392454]
[1733304241590,0.82264832,3720.8,3720.7,1.14475488]
[1733304243606,1.75412322,3720.8,3720.7,1.14475488]
[1733304243768,3.57017531,3720.8,3720.7,1.14475488]
[1733304243972,3.12475722,3720.8,3720.7,1.14475488]
[1733304244185,2.70594959,3720.8,3720.7,1.14475488]
[1733304244503,1.77446431,3720.8,3720.7,1.14475488]
[1733304244803,0.82264832,3720.8,3720.7,1.14475488]
[1733304244959,0.82264832,3720.8,3720.7,3.83241488]
[1733304247075,0.65455902,3720.8,3720.7,3.83241488]
[1733304247798,0.65455902,3720.8,3720.7,5.22389387]
[1733304249373,2.51732367,3721.2,3720.7,2.53623387]
[1733304249585,4.69130279,3721.1,3720.8,2.68757]
[1733304249790,3.15191612,3721.0,3720.8,2.68757]
[1733304249956,1.7541477,3720.9,3720.8,2.68757]
[1733304250863,1.7541477,3720.9,3720.7,2.53623387]
[1733304251064,1.75423576,3720.8,3720.7,2.53623387]
[1733304251361,3.69142096,3720.8,3720.7,2.53623387]
[1733304251593,4.81112035,3720.8,3720.7,2.53623387]
[1733304251799,3.69142096,3720.8,3720.7,2.53623387]
[1733304252967,3.6914919,3720.8,3720.7,2.53623387]
[1733304253274,3.69148435,3720.8,3720.7,2.53623387]
[1733304253461,2.29357018,3720.8,3720.7,2.53623387]
[1733304253670,2.29350565,3720.8,3720.7,5.22389387]
[1733304253973,0.82237341,3720.8,3720.7,5.22389387]
[1733304254301,0.65426977,3720.8,3720.7,6.56349387]
[1733304254508,0.25164222,3720.8,3720.7,6.56349387]
[1733304257081,0.25156922,3720.8,3720.7,6.56349387]
[1733304257390,0.25156922,3720.8,3720.7,7.11297425]
[1733304258168,0.25156922,3720.8,3720.7,8.09305367]
[1733304258371,1.11969939,3721.6,3721.0,2.68742]
[1733304258601,1.75377612,3721.5,3721.4,2.68716]
[1733304259103,3.1513683,3721.5,3721.4,2.68716]
[1733304259404,3.1513683,3721.5,3721.0,2.68739]
[1733304259613,3.1513683,3721.5,3721.4,2.53623387]
[1733304259614,0.4194037,3721.5,3721.4,2.53623387]
[1733304259906,4.83130994,3721.5,3721.4,2.53623387]
[1733304260207,5.25071364,3721.5,3721.4,2.53623387]
[1733304260507,4.83130994,3721.5,3721.4,2.53623387]
[1733304260665,4.83130994,3721.5,3721.0,2.53623387]
[1733304260666,5.25071364,3721.5,3721.0,2.53623387]
[1733304260861,1.12700025,3721.3,3721.0,2.53623387]
[1733304261108,4.2787611,3721.2,3721.0,2.53623387]
[1733304261470,2.32963615,3721.1,3721.0,2.53623387]
[1733304261626,3.15177495,3721.1,3721.0,2.53623387]
[1733304261779,3.15177495,3721.1,3721.0,5.22367387]
[1733304262287,1.75399326,3721.1,3721.0,5.22367387]
[1733304262487,0.6540531,3721.1,3721.0,5.22367387]
[1733304262691,1.58601484,3721.1,3721.0,5.22367387]
[1733304262897,0.6540531,3721.1,3721.0,5.22367387]
[1733304263513,0.82212635,3721.1,3721.0,5.22367387]
[1733304267221,0.82230849,3721.1,3721.0,5.22367387]
[1733304267596,0.65423395,3721.1,3721.0,5.77367387]
[1733304267797,0.65423395,3721.1,3721.0,9.7547913]
[1733304269836,0.65423395,3721.1,3721.0,9.50674051]
[1733304271438,1.54638099,3721.6,3721.0,9.50674051]
[1733304271609,1.69050038,3721.8,3721.0,9.50674051]
[1733304271610,1.12700025,3721.8,3721.7,2.68694]
[1733304271797,2.49766963,3721.8,3721.7,2.68694]
[1733304272006,1.09989968,3721.8,3721.7,2.68694]
[1733304272558,2.10988112,3722.1,3721.7,2.68694]
[1733304272559,1.12700025,3722.1,3721.7,2.68694]
[1733304272734,1.12700025,3722.1,3722.0,2.68672]